[Event "24th Hoogeschool Zeeland 2022"]
[Site "Vlissingen"]
[Date "2022.08.10"]
[Round "6.23"]
[White "Lammens, Tim"]
[Black "Mensing, Adrian"]
[Result "0-1"]
[ECO "A49"]
[WhiteElo "2255"]
[BlackElo "1956"]
[Annotator "TA"]
[PlyCount "124"]
[EventDate "2022.08.05"]
[EventType "swiss"]
[EventCountry "NED"]
[SourceTitle "playchess.com"]
[Source "ChessBase"]
[SourceQuality "1"]
[TimeControl "40/5400+30:1800+30"]

{[%evp 12,124,71,62,66,64,70,64,60,95,63,79,92,22,41,47,25,16,59,36,48,18,43,50,67,54,75,90,92,43,60,52,65,35,93,83,128,96,187,176,160,116,182,185,280,280,326,300,301,311,235,97,109,95,161,118,92,-20,0,-17,-20,-14,0,0,10,-232,0,0,35,-151,-145,-181,-91,-90,-80,-43,-45,-40,8,-129,8,8,8,8,8,8,8,8,16,8,8,8,8,8,8,8,8,8,8,-8,-8,-461,-446,-2708,-2582,-2315,-1953,-7108,-5266,-5825,-5114,-29987,-29988,-29986,-29985]} 1. Nf3 {[%emt 0:00:02]} Nf6 {[%emt 0:07:15]} 2. g3 {[%emt 0:00:05]} g6 {[%emt 0:00:17]} 3. Bg2 {[%emt 0:00:08]} Bg7 {[%emt 0:00:25]} 4. O-O {[%emt 0:00:08]} O-O {[%emt 0:01:23]} 5. d4 {[%emt 0:00:07]} c5 {[%emt 0:00:07]} 6. dxc5 {[%emt 0:01:03]} Na6 {[%emt 0:01:33]} 7. Be3 {[%emt 0:01:45]} Ng4 {[%emt 0:02:06] A49: 1 d4 Nf6 2 Nf3 g6 3 g3: Anti-King's Indian systems.} 8. Bd4 {[%emt 0:00:39]} e5 {[%emt 0:01:04]} 9. Bc3 {[%emt 0:00:32]} Nxc5 {[%emt 0:12:57] White is slightly better.} 10. h3 {[%emt 0:06:16]} Nxf2 {[%emt 0:02:58]} 11. Rxf2 {[%emt 0:00:26]} Ne4 {[%emt 0:00:19][%csl LRf2,LRg3] [#]} 12. Be1 $146 {[%emt 0:04:44]} (12. Bxe5 $1 $16 Nxf2 13. Kxf2) ({Predecessor:} 12. Rf1 Nxg3 13. Re1 d6 14. e3 Be6 15. Kh2 Ne4 16. Bb4 a5 17. Ba3 b5 18. b3 {0-1 (40) Jaszczowski,Z (1767)-Hamilton,D (1965) ICCF email 2014}) 12... Nxf2 {[%emt 0:05:16]} 13. Bxf2 {[%emt 0:00:04]} d5 {[%emt 0:02:43]} 14. c3 {[%emt 0:11:59]} Be6 {[%emt 0:03:50]} 15. Nbd2 {[%emt 0:02:47]} Qe7 {[%emt 0:08:29]} 16. Nf1 {[%emt 0:01:42]} Rfd8 {[%emt 0:03:24]} 17. a4 {[%emt 0:04:58]} d4 {[%emt 0:06:38]} 18. cxd4 {[%emt 0:00:47]} e4 {[%emt 0:00:09]} 19. Ne1 {[%emt 0:03:14]} f5 {[%emt 0:00:44]} 20. Qd2 {[%emt 0:03:47] Prevents Qb4.} (20. e3 $16) 20... Rac8 $14 {[%emt 0:06:05]} 21. e3 {[%emt 0:05:08][%cal Og3g4]} Rc4 {[%emt 0:10:58]} 22. g4 {[%emt 0:14:49]} Bh6 {[%emt 0:05:35]} (22... fxg4 $14 23. hxg4 Bd5) 23. Qe2 $16 {[%emt 0:05:42]} Qe8 {[%emt 0:02:27]} 24. Ng3 {[%emt 0:04:11]} Rb4 {[%emt 0:01:45]} (24... Qf7 $16 {keeps fighting.}) 25. gxf5 $18 {[%emt 0:02:12]} gxf5 {[%emt 0:00:01]} 26. h4 {[%emt 0:08:05]} Qf7 {[%emt 0:04:10]} (26... Rb3 $16 {is a better defense.}) 27. Bh3 {[%emt 0:04:32]} Rd5 {[%emt 0:01:13]} (27... Kh8 $142 28. Ng2 Rb3) 28. Ng2 {[%emt 0:01:15]} Ra5 {[%emt 0:01:31]} 29. Rc1 {[%emt 0:05:29]} Rbxa4 {[%emt 0:03:11]} 30. Kh2 {[%emt 0:00:46]} Rxd4 {[%emt 0:02:08]} 31. exd4 {[%emt 0:05:52]} (31. Be1 $18 Ra6 32. Rc5) 31... Bxc1 $16 {[%emt 0:00:03]} 32. Qe1 {[%emt 0:00:17]} Ra1 {[%emt 0:00:16]} (32... Qc7 $16) 33. d5 {[%emt 0:01:06]} Bd7 {[%emt 0:00:00]} (33... Bxd5 $2 34. Qc3 Be6 35. Nxe4 $1 $18 {[%mdl 512]}) 34. Be3 {[%emt 0:01:09]} (34. Qc3 $16) 34... Bxb2 $11 {[%emt 0:00:57]} 35. Qb4 {[%emt 0:00:11]} Be5 {[%emt 0:00:15]} 36. Bf4 {[%emt 0:01:40]} Qxd5 {[%emt 0:03:28]} 37. Qe7 {[%emt 0:00:23]} Qd4 {[%emt 0:01:43][%csl Ga1][%cal Rd4g1]} 38. Ne2 {[%emt 0:00:37] Inhibits Qg1+.} (38. Qg5+ $11 Kf7 39. Bxf5 Bxf4 40. Qxf4) 38... Bxf4+ $2 {[%emt 0:00:07]} ({Black should try} 38... Bf6 $19 39. Nxd4 Bxe7 40. Nxf5 Kf7) 39. Ngxf4 {[%emt 0:00:02]} Ra2 {[%emt 0:01:55] Hoping for ...Rd2.} (39... Qd1 $5 {[%cal Rd1h1]} 40. Bf1 Ra2 $11) 40. Qg5+ $2 {[%emt 0:00:04]} (40. Bg2 $14 {stays ahead.} Rxe2 41. Nxe2) 40... Kf7 $17 {[%emt 0:00:30][%cal Oa2e2]} 41. Qh5+ {[%emt 0:02:26] [#]} Ke7 {[%emt 0:12:14]} ({Black should play} 41... Kg7 $1 $19 {Threatens to win with ...Qf6.} 42. Qg5+ Kf7 43. Qh5+ Kg8 44. Qg5+ Kf8) 42. Qxh7+ {[%emt 0:03:57]} Kd6 {[%emt 0:00:45]} 43. Qg6+ {[%emt 0:02:29]} Kc7 {[%emt 0:00:52] White must now prevent ...Qf2+.} 44. Qg3 {[%emt 0:01:02] Inhibits Qf2+.} Qe5 {[%emt 0:04:26] Prevents Ne6+.} (44... Qd6 $15 {was preferrable.} 45. Qc3+ Kb8 46. Qh8+ Bc8) 45. Bg2 {[%emt 0:01:28]} (45. h5 $1 $11 Ra6 46. Nd5+ Kd6 47. Ndf4) 45... Rxe2 {[%emt 0:06:09]} 46. Nxe2 $11 {[%emt 0:00:11]} Qxg3+ {[%emt 0:00:08]} 47. Kxg3 {[%emt 0:00:10]} Kd6 {[%emt 0:00:29]} 48. Kf4 {[%emt 0:00:22] Strongly threatening Ng3.} Ke6 {[%emt 0:01:17]} 49. Kg5 {[%emt 0:01:00] Bh3 is the strong threat.} b5 {[%emt 0:04:39][%cal Bb7b5,Bb5b4,Bb4b3,Bb3b2][%mdl 32]} 50. h5 {[%emt 0:01:28]} Kf7 {[%emt 0:00:40]} 51. h6 {[%emt 0:00:54]} b4 {[%emt 0:00:58]} 52. Nd4 {[%emt 0:02:53]} a5 {[%emt 0:01:22][%cal Ba7a5,Ba5a4,Ba4a3][%mdl 32]} 53. Bf1 {[%emt 0:00:29] Intending Bc4+ and mate.} Kg8 {[%emt 0:00:21]} 54. Bc4+ {[%emt 0:03:37]} Kh7 {[%emt 0:01:05]} 55. Ne2 {[%emt 0:04:21]} a4 {[%emt 0:00:40]} 56. Nf4 $2 {[%emt 0:00:45][%mdl 8192]} (56. Nd4 $11 {and White stays safe.}) 56... b3 $19 {[%emt 0:01:58]} 57. Bd5 {[%emt 0:11:49]} (57. Bf7 $142 Be8 58. Bxe8) 57... b2 {[%emt 0:00:23]} 58. Ba2 {[%emt 0:00:04]} a3 {[%emt 0:00:21] aiming for ...Be8.} 59. Ng6 {[%emt 0:01:20]} Be8 {[%emt 0:00:46]} (59... Bc8 $2 60. Nf8+ Kh8 61. h7 $18) 60. Nf8+ {[%emt 0:00:18]} Kh8 {[%emt 0:00:02] ( -> ...e3)} 61. Kf6 {[%emt 0:00:15]} e3 {[%emt 0:00:55]} 62. Ke7 {[%emt 0:00:07]} Bh5 {[%emt 0:00:12] Both players deserved the win here.  Weighted Error Value: White=0.81/Black=0.26 (precise)} 0-1

[Event "24th Hoogeschool Zeeland 2022"]
[Site "Vlissingen"]
[Date "2022.08.10"]
[Round "6.24"]
[White "Bruil, Rembrandt"]
[Black "Ackermann, Frank"]
[Result "1-0"]
[ECO "E14"]
[WhiteElo "2204"]
[BlackElo "2012"]
[Annotator "TA"]
[PlyCount "95"]
[EventDate "2022.08.05"]
[EventType "swiss"]
[EventCountry "NED"]
[SourceTitle "playchess.com"]
[Source "ChessBase"]
[SourceQuality "1"]
[TimeControl "40/5400+30:1800+30"]

{[%evp 9,95,13,63,67,63,67,66,65,69,60,60,37,63,61,69,52,61,37,46,49,73,73,91,83,83,68,77,62,62,63,68,48,50,46,54,56,62,58,66,62,79,70,77,45,45,50,48,52,75,75,89,74,92,93,84,82,225,226,202,212,213,220,212,185,199,120,293,292,279,194,205,199,273,279,499,487,435,364,622,619,750,735,817,787,1187,1204,837,795]} 1. Nf3 {[%emt 0:00:03]} Nf6 {[%emt 0:00:10]} 2. e3 {[%emt 0:00:45][%cal Be2e3,Be3e4,Be4d5][%mdl 32]} e6 {[%emt 0:01:00]} 3. c4 {[%emt 0:00:28]} c5 {[%emt 0:00:28]} 4. d4 {[%emt 0:05:24][%cal Bd2d4,Bd4d5][%mdl 32]} b6 {[%emt 0:06:12]} 5. Nc3 {[%emt 0:02:50]} Be7 {[%emt 0:02:25]} (5... cxd4 $11 6. exd4 Bb4) 6. d5 $1 $14 {[%emt 0:05:33] Strongly threatening d6. E14: Queen's Indian: Classical Variation (4 e3).} d6 {[%emt 0:01:18]} 7. e4 {[%emt 0:01:54]} O-O {[%emt 0:00:38]} 8. Be2 {[%emt 0:01:27] White is slightly better.} exd5 {[%emt 0:02:37]} 9. exd5 {[%emt 0:00:09]} Bf5 {[%emt 0:04:45] [#]} 10. Nh4 $146 {[%emt 0:07:26]} ({Predecessor:} 10. Bd3 Qc8 11. O-O Re8 12. Bg5 Bxd3 13. Qxd3 Nbd7 14. Rfe1 Qd8 15. Re2 Ng4 16. Bxe7 Rxe7 {1-0 (47) Genis,R (1745)-Scharmann,H (1457) Grossauheim 2007}) 10... Bc8 {[%emt 0:00:44]} 11. O-O {[%emt 0:05:16]} Re8 {[%emt 0:01:19]} 12. Re1 {[%emt 0:03:45]} Bf8 {[%emt 0:03:21]} 13. Bd3 {[%emt 0:06:42]} Rxe1+ {[%emt 0:06:36]} 14. Qxe1 {[%emt 0:00:06]} Nbd7 {[%emt 0:00:20]} 15. Nf3 {[%emt 0:06:44] Inhibits Ne5.} Qe7 {[%emt 0:04:23]} 16. Bf4 {[%emt 0:01:38]} Nh5 {[%emt 0:01:38]} 17. Bg5 {[%emt 0:02:38] 0x0.0019eda60b29dp-1022s more active pieces.} f6 {[%emt 0:01:12]} 18. Bd2 {[%emt 0:08:50] Hoping for g4.} Ne5 {[%emt 0:02:09]} 19. Nxe5 {[%emt 0:04:45]} fxe5 {[%emt 0:00:29]} 20. Qe4 {[%emt 0:07:51]} g6 $1 {[%emt 0:01:20]} 21. Re1 {[%emt 0:01:09]} Qf7 {[%emt 0:03:05]} 22. g3 {[%emt 0:05:47]} Bd7 {[%emt 0:01:10]} 23. Qe2 {[%emt 0:00:43]} Re8 {[%emt 0:08:40]} 24. f3 {[%emt 0:03:03]} (24. b3 {seems wilder.} Bg7 25. Kg2 Bf5 26. Nb5) 24... Nf6 {[%emt 0:04:23]} 25. Kg2 {[%emt 0:00:43]} Bg7 {[%emt 0:00:55]} 26. Be4 {[%emt 0:03:12]} Qf8 {[%emt 0:01:28]} 27. Qe3 {[%emt 0:04:48]} Kh8 {[%emt 0:01:49]} 28. g4 {[%emt 0:02:21][%cal Bg3g4,Bg4g5][%mdl 32]} Ng8 {[%emt 0:03:39]} 29. h4 {[%emt 0:00:47][%cal Bh2h4,Bh4h5,Bh5g6][%mdl 32]} Qf7 {[%emt 0:01:59]} 30. Rh1 {[%emt 0:02:39]} Bh6 {[%emt 0:01:18]} 31. g5 {[%emt 0:03:33] Threatens to win with h5.} Bg7 {[%emt 0:00:02]} 32. h5 {[%emt 0:00:10]} Bf5 {[%emt 0:03:56] [#]} (32... gxh5 $16 33. Qf2 Ne7) 33. hxg6 $1 $18 {[%emt 0:00:37]} Bxg6 {[%emt 0:00:35]} 34. Bxg6 {[%emt 0:02:28]} Qxg6 {[%emt 0:00:03] [#]} 35. Qe4 $1 {[%emt 0:00:08] White wants to mate with Qxg6.} Ne7 {[%emt 0:02:07]} 36. Nb5 {[%emt 0:00:01]} Rd8 {[%emt 0:03:28]} 37. Nxa7 {[%emt 0:00:56]} (37. Qxg6 $18 Nxg6 38. Nxa7) 37... Ra8 $2 {[%emt 0:06:18]} (37... Nf5 $16) 38. Nb5 {[%emt 0:00:13]} Rxa2 {[%emt 0:00:48]} 39. Bc1 $40 {[%emt 0:00:35][%mdl 128] Black is in trouble.} Kg8 {[%emt 0:13:23]} 40. Qxg6 {[%emt 0:00:48]} Nxg6 {[%emt 0:00:02]} (40... hxg6 $142 41. Nxd6 Kf8) 41. Nxd6 {[%emt 0:02:53]} Nf4+ $2 {[%emt 0:04:50]} (41... Ra4 42. Bd2 e4) 42. Bxf4 {[%emt 0:05:16]} exf4 {[%emt 0:02:36][%mdl 4096] Endgame KRB-KRN} 43. Rb1 {[%emt 0:00:34]} Bxb2 $2 {[%emt 0:01:55]} (43... h6 44. gxh6 Bxh6) 44. Kh3 {[%emt 0:00:30] White is clearly winning.} Kf8 {[%emt 0:05:12]} 45. Kg4 {[%emt 0:01:07]} Be5 {[%emt 0:02:03]} 46. Rxb6 {[%emt 0:01:11]} Bxd6 {[%emt 0:03:10]} 47. Rxd6 {[%emt 0:00:05]} Rc2 {[%emt 0:00:18]} 48. Rf6+ {[%emt 0:00:05] Weighted Error Value: White=0.13 (very precise) /Black=0.30} 1-0

[Event "24th Hoogeschool Zeeland 2022"]
[Site "Vlissingen"]
[Date "2022.08.11"]
[Round "7.1"]
[White "Van den Doel, Erik"]
[Black "Lalith Babu M R"]
[Result "1/2-1/2"]
[ECO "C78"]
[WhiteElo "2589"]
[BlackElo "2549"]
[Annotator "TA"]
[PlyCount "101"]
[EventDate "2022.08.05"]
[EventType "swiss"]
[EventCountry "NED"]
[SourceTitle "playchess.com"]
[Source "ChessBase"]
[SourceQuality "1"]
[TimeControl "40/5400+30:1800+30"]

{[%evp 13,101,16,5,0,35,33,40,44,48,47,48,48,57,60,52,50,56,48,46,51,57,33,44,0,44,61,68,54,32,43,75,50,53,23,22,23,25,13,11,12,47,47,47,43,43,43,31,38,79,64,72,31,56,56,55,47,52,52,52,52,52,52,52,51,62,62,55,9,47,49,62,62,62,62,62,62,62,62,62,62,62,62,62,62,62,62,62,62,62,62]} 1. e4 {[%emt 0:00:04]} e5 {[%emt 0:00:23]} 2. Nf3 {[%emt 0:00:08]} Nc6 {[%emt 0:00:05]} 3. Bb5 {[%emt 0:00:05]} a6 {[%emt 0:00:05]} 4. Ba4 {[%emt 0:00:04]} Nf6 {[%emt 0:00:05]} 5. d3 {[%emt 0:00:05]} b5 {[%emt 0:00:14]} 6. Bb3 {[%emt 0:00:05]} Bc5 {[%emt 0:00:05]} 7. O-O {[%emt 0:00:40]} d6 {[%emt 0:00:30]} 8. c3 {[%emt 0:00:51] C78: Ruy Lopez: Archangelsk and Möller Defences.} Bb6 {[%emt 0:07:11] 8...h6 is a critical line.} 9. a4 {[%emt 0:12:07]} Rb8 {[%emt 0:06:31]} 10. axb5 {[%emt 0:02:00]} axb5 {[%emt 0:00:06]} 11. Na3 {[%emt 0:00:05]} b4 {[%emt 0:09:42] [#]} 12. Ba4 $146 {[%emt 0:12:32]} ({Predecessor:} 12. Nc4 bxc3 13. bxc3 O-O 14. Nxb6 Rxb6 15. Be3 Rb8 16. h3 h6 17. Ba4 Ne7 18. Qc2 {1-0 (43) Martinez Reyes,P (2416)-Wanyama,H (2312) Chess.com INT 2020}) 12... Bd7 {[%emt 0:00:19]} 13. Bxc6 {[%emt 0:00:08]} Bxc6 {[%emt 0:00:04]} 14. cxb4 {[%emt 0:00:04]} h6 {[%emt 0:05:22]} 15. Qc2 {[%emt 0:06:44]} Bd7 {[%emt 0:01:04]} 16. Nc4 {[%emt 0:02:21]} O-O {[%emt 0:00:18]} 17. Nxb6 {[%emt 0:01:30]} Rxb6 {[%emt 0:02:28]} 18. Ra7 {[%emt 0:06:05]} Ne8 {[%emt 0:00:45]} 19. Bd2 {[%emt 0:15:50]} f5 {[%emt 0:03:56]} 20. exf5 {[%emt 0:04:16]} Bxf5 {[%emt 0:00:43]} 21. Qc4+ {[%emt 0:07:21]} Kh8 {[%emt 0:03:27]} 22. Rfa1 {[%emt 0:03:23] White is more active.} Qf6 {[%emt 0:06:15]} 23. Ra8 {[%emt 0:01:08]} (23. Be3 $5 {[%cal Re3b6]} Be6 24. Qc3 $14) 23... Be6 {[%emt 0:07:10]} 24. Qh4 {[%emt 0:04:10]} Kg8 {[%emt 0:00:09]} 25. Be3 {[%emt 0:03:42]} Rb5 {[%emt 0:16:10]} ({Resist} 25... Qxh4 26. Nxh4 Rxb4 27. Ng6 $16) 26. R1a5 $36 {[%emt 0:06:53][%mdl 2048] White fights for an advantage.} Rd5 {[%emt 0:01:40]} 27. Qxf6 {[%emt 0:02:14]} Nxf6 {[%emt 0:00:06]} 28. Rxf8+ {[%emt 0:02:00]} Kxf8 {[%emt 0:00:04]} 29. d4 {[%emt 0:00:05]} e4 {[%emt 0:01:24]} 30. Nd2 {[%emt 0:01:27]} Ke7 {[%emt 0:00:22] [#]} 31. Nb1 $1 {[%emt 0:00:48]} Kd7 {[%emt 0:01:13]} 32. b5 {[%emt 0:02:23]} Rf5 {[%emt 0:00:52]} 33. Nc3 {[%emt 0:00:13]} Kc8 {[%emt 0:02:53]} 34. h3 {[%emt 0:00:20]} h5 {[%emt 0:00:15]} 35. Ra7 {[%emt 0:03:03][%cal Ob5b6]} Nd5 $1 {[%emt 0:02:04]} 36. Nxd5 {[%emt 0:00:05]} Bxd5 $14 {[%emt 0:01:09][%mdl 4096] Endgame KRB-KRB} 37. b6 {[%emt 0:00:08]} Bb7 {[%emt 0:00:57]} 38. bxc7 {[%emt 0:01:12]} Rb5 {[%emt 0:00:16]} 39. b4 {[%emt 0:01:57]} Kxc7 {[%emt 0:01:23]} 40. Bd2 {[%emt 0:00:34]} (40. Ra4 $14) 40... Kc6 {[%emt 0:00:06]} 41. Ra5 {[%emt 0:08:57] White is slightly better.} Rxa5 {[%emt 0:01:36]} 42. bxa5 {[%emt 0:00:56] KB-KB} Kd5 {[%emt 0:00:05]} 43. Be3 {[%emt 0:00:21]} Ba6 {[%emt 0:02:02]} 44. Kh2 {[%emt 0:04:16]} Ke6 {[%emt 0:05:43]} 45. Kg3 {[%emt 0:01:25]} Kf5 $1 {[%emt 0:01:15]} 46. Kh4 {[%emt 0:00:14]} g6 {[%emt 0:01:18]} 47. Bc1 {[%emt 0:08:40]} d5 {[%emt 0:02:32]} 48. g4+ {[%emt 0:01:15]} hxg4 {[%emt 0:00:05]} 49. hxg4+ {[%emt 0:00:02]} Ke6 {[%emt 0:00:08]} 50. Kg5 {[%emt 0:00:04]} Kf7 {[%emt 0:00:03]} 51. Kf4 {[%emt 0:00:46] Weighted Error Value: White=0.05 (flawless) /Black=0.08 (flawless)} 1/2-1/2

[Event "24th Hoogeschool Zeeland 2022"]
[Site "Vlissingen"]
[Date "2022.08.11"]
[Round "7.2"]
[White "Ponomariov, Ruslan"]
[Black "Leenhouts, Koen"]
[Result "1-0"]
[ECO "B48"]
[WhiteElo "2642"]
[BlackElo "2442"]
[Annotator "TA"]
[PlyCount "101"]
[EventDate "2022.08.05"]
[EventType "swiss"]
[EventCountry "NED"]
[SourceTitle "playchess.com"]
[Source "ChessBase"]
[SourceQuality "1"]
[TimeControl "40/5400+30:1800+30"]

{[%evp 11,101,28,58,0,0,0,0,0,0,0,0,-1,0,0,0,0,0,0,0,-15,-18,-22,154,142,154,133,346,353,323,323,335,225,219,218,212,209,226,212,207,227,196,213,217,220,202,208,244,226,270,257,291,291,288,283,262,233,274,275,391,227,279,243,274,288,314,324,350,311,318,285,324,322,297,283,295,306,319,331,342,336,309,305,29970,29971,29971,29971,29987,29988,29992,29990,29992,29991]} 1. e4 {[%emt 0:00:03]} c5 {[%emt 0:00:19]} 2. Nf3 {[%emt 0:00:15]} e6 {[%emt 0:00:10]} 3. d4 {[%emt 0:00:27]} cxd4 {[%emt 0:00:09]} 4. Nxd4 {[%emt 0:00:04]} Nc6 {[%emt 0:00:08]} 5. Nc3 {[%emt 0:01:31]} Qc7 {[%emt 0:00:07]} 6. Be3 {[%emt 0:00:17]} a6 {[%emt 0:00:11]} 7. g4 {[%emt 0:00:41] is cutting edge theory. B48: Sicilian: Taimanov: 5 Nc3 Qc7 6 Be3 a6 without Be2.} ({Better is} 7. a3 $14) 7... b5 $11 {[%emt 0:01:08][%cal Bb7b5,Bb5b4][%mdl 32]} 8. Nxc6 {[%emt 0:00:31]} Qxc6 {[%emt 0:02:31]} 9. Qd2 {[%emt 0:00:49] The position is equal.} b4 {[%emt 0:00:23]} 10. Ne2 {[%emt 0:00:11]} Qxe4 {[%emt 0:00:21]} 11. Rg1 {[%emt 0:00:13] Bg2 is the strong threat.} Qc4 {[%emt 0:00:20]} 12. Ng3 {[%emt 0:02:52]} Qc7 {[%emt 0:00:06]} 13. O-O-O {[%emt 0:00:23]} Nf6 {[%emt 0:01:19]} 14. Bf4 {[%emt 0:10:49] [#]} Qa5 $146 {[%emt 0:07:49]} ({Predecessor:} 14... Qb6 15. Be5 d5 16. Kb1 Bb7 17. g5 Nd7 18. Bd4 Qc7 19. f4 Rg8 20. Nh5 Bc5 {½-½ (82) Huschenbeth,N (2610)-Materia,M (2409) Biel 2022}) 15. Bc4 {[%emt 0:09:35][%cal Bf1c4,Bc4b3,Bb3d5][%mdl 32]} d5 {[%emt 0:11:12]} 16. Bb3 {[%emt 0:00:46]} Bc5 $2 {[%emt 0:13:08] [#]} (16... Nxg4 $2 17. Nh5 Nf6 18. Nxg7+ Bxg7 19. Rxg7 $18) ({Black should play} 16... h6 $11) 17. g5 $1 $16 {[%emt 0:04:47]} Nd7 {[%emt 0:12:03]} 18. Bxd5 $1 {[%emt 0:03:40] White is more active.} O-O $2 {[%emt 0:07:30] Loses the game.} (18... Ra7 $16 {is a better defense.}) 19. Bxa8 $18 {[%emt 0:09:28]} Qxa2 {[%emt 0:00:16][%cal Ra2a1]} 20. Qd3 {[%emt 0:00:08]} Nb6 {[%emt 0:02:28] And now ...Nc4 would win.} 21. Qb3 {[%emt 0:00:57]} Qxb3 {[%emt 0:00:57]} 22. cxb3 {[%emt 0:00:08]} Nxa8 {[%emt 0:00:05]} 23. Ne4 {[%emt 0:06:14]} Be7 {[%emt 0:00:20]} 24. Bd6 {[%emt 0:06:17]} Bxd6 {[%emt 0:00:27]} 25. Rxd6 {[%emt 0:00:19]} (25. Nxd6 Nb6 26. Rd4 Nd5 $16) 25... Nc7 {[%emt 0:02:06]} 26. Kd2 {[%emt 0:01:36]} Nb5 {[%emt 0:00:51]} 27. Rb6 {[%emt 0:01:12]} Nd4 {[%emt 0:03:37] Hoping for ...Nf3+.} 28. Ke3 {[%emt 0:13:14] Against Nf3} e5 {[%emt 0:01:09]} 29. Nd6 {[%emt 0:00:38]} Be6 {[%emt 0:07:32]} 30. f4 {[%emt 0:00:30]} (30. Rxa6 $6 Nxb3 31. Rd1 Nd4 $18) 30... Nc2+ {[%emt 0:10:18]} 31. Kd3 {[%emt 0:01:39]} Nd4 {[%emt 0:00:04]} 32. fxe5 {[%emt 0:02:54]} (32. Rxa6 $6 Nxb3 33. Ke3 exf4+ 34. Kxf4 Nc5 $18) 32... Nf3 {[%emt 0:00:12]} 33. Rf1 {[%emt 0:00:51]} Nxh2 {[%emt 0:02:50]} 34. Rf4 {[%emt 0:00:32]} Ng4 {[%emt 0:00:17] [#]} (34... a5 {keeps fighting.} 35. Ra6 h6 36. gxh6 (36. Rxa5 hxg5 37. Rxb4 g4 $18) 36... g5) 35. Kd4 {[%emt 0:02:25]} (35. Nxf7 $142 $1 {[%mdl 512]} Bxf7 (35... Re8 36. Rxa6) 36. Rxg4) 35... h5 {[%emt 0:02:16]} 36. gxh6 $1 {[%emt 0:00:52]} ({Don't play} 36. Rxb4 $6 h4 $16) (36. Rxa6 Rd8 37. Rf1 Nh2 $16) 36... Nxh6 {[%emt 0:02:58]} 37. Rxb4 {[%emt 0:03:39]} Rd8 {[%emt 0:00:46]} 38. Kc5 {[%emt 0:04:05]} a5 {[%emt 0:04:15]} 39. Rb7 {[%emt 0:05:20]} g5 {[%emt 0:00:32]} 40. Rf6 {[%emt 0:02:26]} Ng4 {[%emt 0:00:11]} 41. Rfxf7 {[%emt 0:30:15]} Bxf7 {[%emt 0:32:13]} 42. Nxf7 {[%emt 0:00:03][%mdl 4096] Endgame KRN-KRN} Rd2 {[%emt 0:00:00]} 43. e6 {[%emt 0:00:00][%cal Be5e6,Be6e7][%mdl 32]} ({Not} 43. Nxg5 Nxe5 44. Kb6 Rxb2 $14) 43... Nf6 {[%emt 0:00:00]} 44. Nh6+ {[%emt 0:00:00]} Kh8 {[%emt 0:00:00]} 45. e7 {[%emt 0:00:00]} Re2 {[%emt 0:00:00]} 46. Ng4 {[%emt 0:00:00]} Ng8 {[%emt 0:00:00]} (46... Ne8 $18 47. Rb8 Rxe7) 47. Kd6 {[%emt 0:00:00] White mates.} Nxe7 {[%emt 0:00:00]} 48. Rxe7 {[%emt 0:00:00]} Rxb2 {[%emt 0:00:00]} 49. Nf6 {[%emt 0:00:00][%csl Gf6][%cal Re7h7]} Rh2 {[%emt 0:00:00]} 50. Kd7 {[%emt 0:00:00]} Rh3 {[%emt 0:00:24]} 51. Ke8 {[%emt 0:00:00] Weighted Error Value: White=0.14 (very precise) /Black=0.40} 1-0

[Event "24th Hoogeschool Zeeland 2022"]
[Site "Vlissingen"]
[Date "2022.08.11"]
[Round "7.3"]
[White "Santiago, Yago De Moura"]
[Black "Baklan, Vladimir"]
[Result "1/2-1/2"]
[ECO "E91"]
[WhiteElo "2513"]
[BlackElo "2589"]
[Annotator "TA"]
[PlyCount "44"]
[EventDate "2022.08.05"]
[EventType "swiss"]
[EventCountry "NED"]
[SourceTitle "playchess.com"]
[Source "ChessBase"]
[SourceQuality "1"]
[TimeControl "40/5400+30:1800+30"]

{[%evp 16,44,0,0,0,-4,-16,-1,-7,-14,-10,-32,-2,-11,-8,-9,-10,-17,-11,-58,0,0,15,10,9,14,26,0,0,0,27]} 1. d4 {[%emt 0:01:51]} Nf6 {[%emt 0:00:06]} 2. c4 {[%emt 0:00:10]} g6 {[%emt 0:00:02]} 3. Nc3 {[%emt 0:00:42]} Bg7 {[%emt 0:00:05]} 4. e4 {[%emt 0:00:08]} d6 {[%emt 0:00:03]} 5. Nf3 {[%emt 0:01:41]} O-O {[%emt 0:00:05]} 6. Be2 {[%emt 0:00:07]} Na6 {[%emt 0:00:47]} 7. Bg5 {[%emt 0:03:20]} h6 {[%emt 0:02:09]} 8. Bh4 {[%emt 0:03:10]} g5 {[%emt 0:02:41]} 9. Bg3 {[%emt 0:00:29]} Nh5 {[%emt 0:00:12][%cal Oe7e5] E91: King's Indian: Classical: 6 Be2, unusual replies including 6...c5 and 6...Bg4.} 10. d5 {[%emt 0:06:29]} Nc5 {[%emt 0:14:15] [#]} 11. Nd4 $146 {[%emt 0:04:53]} ({Predecessor:} 11. Nd2 Nf4 12. Bxf4 gxf4 13. Rc1 a5 14. Qc2 f5 15. Bd3 Nxd3+ 16. Qxd3 e5 17. Nf3 Qf6 18. Nd2 Qg6 19. Rg1 Qh5 20. h3 Qg6 21. Qf3 Bd7 22. exf5 Bxf5 23. Nde4 b6 {½-½ (23) Kurecic,M (2012)-Sokolic,M (1826) Hum na Sutli 2019}) 11... Nxg3 {[%emt 0:00:33]} 12. hxg3 {[%emt 0:00:09]} e6 {[%emt 0:00:21]} 13. O-O {[%emt 0:02:41]} Qf6 {[%emt 0:06:01]} 14. Nb3 {[%emt 0:01:10]} Nxb3 {[%emt 0:01:59]} 15. axb3 {[%emt 0:00:29]} Bd7 {[%emt 0:03:12]} 16. b4 {[%emt 0:01:46]} a6 {[%emt 0:04:20]} 17. c5 {[%emt 0:06:27]} (17. Qc2 $11) 17... Qd4 {[%emt 0:19:48]} ({Better is} 17... exd5 $15 18. exd5 Rfd8) 18. dxe6 $11 {[%emt 0:06:51]} fxe6 {[%emt 0:00:32]} 19. Qb3 {[%emt 0:09:38]} Kh8 {[%emt 0:13:15]} 20. Rad1 {[%emt 0:03:25]} Qe5 {[%emt 0:00:08]} 21. Rd2 {[%emt 0:01:00]} Bc6 {[%emt 0:01:18]} 22. cxd6 {[%emt 0:05:03]} cxd6 {[%emt 0:00:14] A balanced but interesting game.  Weighted Error Value: White=0.08 (flawless) /Black=0.08 (flawless)} (22... Rad8 $5 {[%cal Rd8d6]}) 1/2-1/2